Cogmind - Beta 10.2 @@@ ROGUE MODE // 2021.06.16 @ 11:33:18 Player: the cat Result: Destroyed self with Grenade Launcher Performance ------------- Evolutions (0) 0 Regions Visited (2) 400 Robots Destroyed (16) 80 Value Destroyed (364) 364 Prototype IDs (0) 0 Alien Tech Used (0) 0 Bonus (0) 0 TOTAL SCORE: 844 Bonus ------- None Cogmind --------- Core Integrity 0/250 Matter 158/300 Energy 250/250 System Corruption 0% Temperature Cool (0) Movement Rolling (100) Ox2 Location -10/Mines Parts ------- > --- POWER (1) -------- Ion Engine > --- PROPULSION (2) --- Wheel Wheel > --- UTILITY (2) ------ Large Storage Unit High-capacity Storage Unit > --- WEAPON (2) ------- (None) > --- INVENTORY (18) --- Ion Engine Cooling System Medium Storage Unit Large Storage Unit Large Matter Pod (150) Peak State ------------ > --- POWER ------------ Ion Engine > --- PROPULSION ------- Wheel Wheel > --- UTILITY ---------- Large Storage Unit High-capacity Storage Unit > --- WEAPON ----------- Small Laser Light Assault Rifle > --- INVENTORY -------- Light Ion Engine Wheel Wheel Cooling System Small Storage Unit Medium Storage Unit Large Storage Unit Large Matter Pod Grenade Launcher [Rating: 8] Favorites ----------- Power Ion Engine Engine Ion Engine Propulsion Wheel Wheel Wheel Utility Large Storage Unit Storage Large Storage Unit Weapon Assault Rifle Energy Gun Small Laser Ballistic Gun Assault Rifle Launcher Grenade Launcher Build | -11 -10 -10 ------- Run | Scr Mat Min Slots Evolved . | . . . Power . | . . . Propulsion . | . . . Utility . | . . . Weapon . | . . . Parts Attached 19 | 6 10 3 Power 2 | 1 1 . Engine 2 | 1 1 . Core . | . . . Reactor . | . . . Propulsion 5 | 2 1 2 Treads . | . . . Leg . | . . . Wheel 5 | 2 1 2 Hover . | . . . Flight . | . . . Utility 5 | 1 4 . Device . | . . . Storage 5 | 1 4 . Processor . | . . . Hackware . | . . . Protection . | . . . Artifact . | . . . Weapon 7 | 2 4 1 Energy Gun 3 | 1 2 . Energy Cannon . | . . . Ballistic Gun 2 | 1 1 . Ballistic Cannon . | . . . Launcher 2 | . 1 1 Special Weapon . | . . . Impact Weapon . | . . . Slashing Weapon . | . . . Piercing Weapon . | . . . Special Melee Weapon . | . . . Unidentified Prototypes . | . . . Parts Lost 10 | . 5 5 Power 1 | . 1 . Propulsion 3 | . 1 2 Utility . | . . . Weapon 6 | . 3 3 Highest Loss Streak 4 | . 4 3 Average Slot Usage (%) 88 | . 89 86 Engine 10 | . 9 14 Wheel 26 | . 26 25 Storage 27 | . 27 28 Energy Gun 10 | . 12 3 Ballistic Gun 10 | . 9 12 Naked Turns . | . . . Heaviest Build 55 | 13 55 55 Greatest Support 20 | 20 20 20 Greatest Overweight (x) 3 | . 3 2 Average Overweight (x) 1 | . . 2 Largest Inventory Capacity 18 | 6 18 18 Average Capacity 13 | 5 12 18 Most Carried 9 | 2 9 8 Average Carried 5 | . 5 7 Final Capacity 18 | 6 18 18 Final Carried 9 | 2 9 5 Class Distribution -------------------- 100% | Mutant Dominant Class ---------------- Mutant | -10/Materials Mutant | -10/Mines Resources | -11 -10 -10 ----------- Run | Scr Mat Min Matter Collected 572 | 212 311 49 Remotely . | . . . Salvage Created 387 | . 287 100 Parts 26 | . 17 9 Haulers Intercepted . | . . . Recyclers Shooed 4 | . 3 1 Parts Field Recycled . | . . . Retrieved Matter . | . . . Parts Self-Destructed . | . . . Prevented . | . . . Kills | -11 -10 -10 ------- Run | Scr Mat Min Combat Hostiles Destroyed 14 | . 9 5 Guns 9 | . 6 3 AOE 5 | . 3 2 Classes Destroyed 4 | . 4 . Worker 1 | . 1 . Builder 1 | . 1 . Swarmer 6 | . 3 3 Grunt 8 | . 6 2 Best Kill Streak 4 | . 4 3 Combat Bots Only 3 | . 3 3 Max Kills in Single Turn 1 | . 1 1 Gunslinging . | . . . Exploded 1 | . 1 1 Melee . | . . . Uniques/NPCs Destroyed . | . . . Combat | -11 -10 -10 -------- Run | Scr Mat Min Damage Taken 979 | . 505 474 Core 263 | . 92 171 Absorbed by Shields . | . . . Core Remaining (%) 100 | 100 . . Volleys Fired 80 | . 42 38 Largest 2 | . 2 2 Hottest 70 | . 70 60 Shots Fired 106 | . 66 40 Gun 95 | . 60 35 Cannon . | . . . Launcher 11 | . 6 5 Special . | . . . Kinetic 60 | . 27 33 Thermal 35 | . 33 2 Explosive 11 | . 6 5 Electromagnetic . | . . . Robot Hit Streak 10 | . 6 10 Robot Miss Streak 3 | . 3 2 Penetration Max . | . . . Secondary Targets 1 | . 1 . Max Gunslinging Chain 1 | . 1 . Shots Hit Robots 69 | . 38 31 Core Hits 32 | . 20 12 Critical Hits . | . . . Critical Kills . | . . . Critical Parts Destroyed . | . . . Melee Attacks . | . . . Impact . | . . . Slashing . | . . . Piercing . | . . . Sneak Attacks . | . . . Combat Hostiles . | . . . Follow-up Attacks . | . . . Damage Inflicted 1135 | . 701 434 Guns 661 | . 446 215 Cannons . | . . . Explosions 474 | . 255 219 Melee . | . . . Ramming . | . . . Kinetic 376 | . 185 191 Thermal 285 | . 261 24 Explosive 474 | . 255 219 Electromagnetic . | . . . Impact . | . . . Slashing . | . . . Piercing . | . . . Highest Corruption . | . . . Average Corruption . | . . . Corruption Purged . | . . . Overload Shots . | . . . Overflow Damage 24 | . . 24 Projectiles . | . . . Explosions 24 | . . 24 Melee . | . . . Knockbacks . | . . . Impact . | . . . Kinetic . | . . . Secondary . | . . . Self-Inflicted Damage 113 | . 13 100 Shots 5 | . 1 4 Rammed . | . . . Targets Rammed . | . . . Kicked . | . . . Crushed . | . . . Highest Temperature 81 | . 81 26 Average Temperature 28 | . 31 12 Received Heat Transfer 372 | . 222 150 Siege Activations . | . . . Robots Corrupted . | . . . Combat Hostiles . | . . . Parts Fried . | . . . Impact Corruptions . | . . . Robots Melted . | . . . Combat Hostiles . | . . . Parts Melted . | . . . Heat Transferred 732 | . 682 50 Parts Sabotaged . | . . . Parts Stolen . | . . . Parts Stripped . | . . . Power Chain Reactions . | . . . Missiles Intercepted . | . . . Alert | -11 -10 -10 ------- Run | Scr Mat Min Peak Influence 287 | . 287 201 Initial 111 | . . 111 Average 133 | . 150 127 Maximum Alert Level 1 | . 1 1 Low Security (%) 71 | 100 60 93 Level 1 28 | . 39 6 Level 2 . | . . . Level 3 . | . . . Level 4 . | . . . Level 5 . | . . . High Security . | . . . Max Security . | . . . Squads Dispatched 2 | . 2 . Investigation . | . . . Extermination . | . . . Reinforcement 2 | . 2 . Assault . | . . . Garrison . | . . . Intercept . | . . . Construction Impeded . | . . . Haulers Reinforced . | . . . Stealth | -11 -10 -10 --------- Run | Scr Mat Min Distress Signals 2 | . 2 . Communications Jammed . | . . . Distress Signals . | . . . Times Spotted 25 | . 18 7 Peak Tracking Total 6 | . 6 3 Tactical Retreats 2 | . 1 1 Traps | -11 -10 -10 ------- Run | Scr Mat Min Traps Triggered . | . . . Indirectly . | . . . Trap Hack Attempts . | . . . Triggered . | . . . Disarmed . | . . . Reprogrammed . | . . . Reused . | . . . Traps Extracted . | . . . Installed . | . . . Triggered . | . . . Machines | -11 -10 -10 ---------- Run | Scr Mat Min Machines Disabled . | . . . Max in Single Turn . | . . . Machines Sabotaged . | . . . Garrisons Compromised . | . . . Overloaded Fab Kills . | . . . Fab Network Shutdowns . | . . . Hacking | -11 -10 -10 --------- Run | Scr Mat Min Machines Accessed 4 | . 4 . Terminals 4 | . 4 . Fabricators . | . . . Repair Stations . | . . . Recycling Units . | . . . Scanalyzers . | . . . Garrison Access . | . . . Total Hacks 14 | . 14 . Successful 8 | . 8 . Failed 6 | . 6 . Catastrophic . | . . . Database Lockouts . | . . . Manual 13 | . 13 . Terminals 14 | . 14 . Fabricators . | . . . Repair Stations . | . . . Recycling Units . | . . . Scanalyzers . | . . . Garrison Access . | . . . Terminal Hacks 4 | . 4 . Part Schematic 1 | . 1 . Robot Analysis 2 | . 2 . Locate Traps 1 | . 1 . Fabricator Hacks . | . . . Repair Station Hacks . | . . . Recycling Unit Hacks . | . . . Scanalyzer . | . . . Garrison Access Hacks . | . . . Unauthorized Hacks 4 | . 4 . Terminals 4 | . 4 . Track 2 | . 2 . Botnet 1 | . 1 . Disrupt 1 | . 1 . Fabricators . | . . . Repair Stations . | . . . Recycling Units . | . . . Scanalyzers . | . . . Garrison Access . | . . . Data Cores Recovered . | . . . Used . | . . . Hacking Detections 4 | . 4 . Full Trace Events . | . . . Feedback Events . | . . . Feedback Blocked . | . . . Robot Schematics Acquired . | . . . Robots Built . | . . . Matter . | . . . Time . | . . . Total Robot Build Rating . | . . . Part Schematics Acquired 1 | . 1 . Parts Built . | . . . Matter . | . . . Time . | . . . Total Part Build Rating . | . . . Parts Repaired . | . . . Time . | . . . Parts Recycled . | . . . Recycled Matter . | . . . Retrieved Matter . | . . . Retrieved Components . | . . . Parts Scanalyzed . | . . . Part Schematics Acquired . | . . . Parts Damaged . | . . . Bothacking | -11 -10 -10 ------------ Run | Scr Mat Min Used RIF Installer . | . . . Robots Hacked . | . . . Non-combat . | . . . Combat . | . . . Robot Hacks Applied . | . . . Relay Couplers Released . | . . . Robots Rewired . | . . . Allies Hacked . | . . . Hacks Repelled . | . . . Allies | -11 -10 -10 -------- Run | Scr Mat Min Total Allies . | . . . Largest Group . | . . . Highest-Rated Group . | . . . Highest-Rated Ally . | . . . Total Orders . | . . . Ally Attacks . | . . . Total Damage . | . . . Kills . | . . . Allies Corrupted . | . . . Allies Melted . | . . . Intel | -11 -10 -10 ------- Run | Scr Mat Min Robot Analysis Total 2 | . 2 . Derelict Logs Recovered . | . . . Drone Launches . | . . . Drone Recoveries . | . . . Exploration | -11 -10 -10 ------------- Run | Scr Mat Min Turns Passed 545 | 41 371 133 Spaces Moved 356 | 39 265 52 Core 2 | 2 . . Treads . | . . . Legs . | . . . Wheels 354 | 37 265 52 Hover . | . . . Flight . | . . . Fastest Speed 50 | 50 80 100 Average Speed 89 | 78 89 100 Slowest Speed 110 | 80 110 100 Overloaded Moves . | . . . Propulsion Burnouts . | . . . Robots Hopped . | . . . Cave-ins Triggered . | . . . Exploration Rate (%) 28 | 3 62 19 Regions Visited 2 Branch Regions 1 Pre-discovered Areas . | . . . Known Exits Taken . | . . . Unknown Exits Taken 2 | 1 1 . Scrap Searched . | . . . Spaces Dug 7 | . 7 . Terrain Destroyed 43 | . 26 17 Melee . | . . . Projectile . | . . . AOE 43 | . 26 17 Terrain Rammed . | . . . Walls Destroyed . | . . . Machines Disabled . | . . . Actions | -11 -10 -10 --------- Run | Scr Mat Min Total 477 | 46 329 102 Wait 13 | . 5 8 Move 354 | 38 264 52 Hop . | . . . Pick Up 8 | 2 6 . Fast Attach 11 | 6 5 . Attach 5 | . 2 3 Detach 1 | . 1 . Swap 3 | . 3 . Drop 2 | . 1 1 Fire 80 | . 42 38 Melee . | . . . Ram . | . . . Kick . | . . . Crush . | . . . Escape Stasis . | . . . Rewire . | . . . Trap . | . . . Miscellaneous . | . . . Route ------- -11/Scrapyard -10/Materials -10/Mines History --------- Turn | Location | Event 24 | -11/Scrapyard | Discovered new exit (range 15) 42 | -11/Scrapyard | Entered Materials 207 | -10/Materials | Discovered new exit (range 13) 296 | -10/Materials | Lost 4 parts (1p1n2w) 315 | -10/Materials | Build established: Mutant 413 | -10/Materials | Entered Mines 457 | -10/Mines | Core integrity fell below 50% 485 | -10/Mines | Core integrity fell below 20% 513 | -10/Mines | Lost 3 parts (2n1w) 546 | -10/Mines | Destroyed self with Grenade Launcher Last Messages --------------- GOAL=ESCAPE 00413_ Dropped Sml. Storage Unit. 00444_ Sml. Laser destroyed. 00464_ Wheel destroyed. 00472_ G-47 Trooper destroyed. 00482_ Wheel destroyed. 00486_ G-34 Mercenary destroyed. 00486_ R-06 Scavenger collects Sml. Laser. 00487_ R-06 Scavenger collects Lgt. Nuclear Core. 00491_ R-06 Scavenger collects Imp. Heat Sink. 00493_ Acquired 49 matter. 00525_ S-10 Pest destroyed. 00537_ Lgt. Assault Rifle destroyed. 00538_ S-10 Pest destroyed. 00544_ Destroyed Lgt. Assault Rifle. 00544_ Destroyed Flight Unit. 00545_ U-05 Engineer lays Concrete. 00546_ S-10 Pest destroyed. 00546_ Grenade Launcher destroyed. 00546_ Destroyed Grenade Launcher. Map ----- +----------------------------------------------------+ | ?????????????????????????????????????????????????? | | ?????????????????????????????????????????????????? | | ?????????????????????????????????????????????????? | | ?????????????????????????????????????????????????? | | ?????????????????????????????????????????????????? | | ?????????????????????????????????????????????????? | | ?????????????????????????????????????????????????? | | ?????????????????????????????????????????????????? | | ?????????????????????????????????????????????????? | | ?????????????????????????????????????????????????? | | ????????????????????????? ???????????????????????? | | ????????????????????????? #??????????????????????? | | ????????????????????????? #??????????????????????? | | ????????????????????????? #??? #?????????????????? | | ????????????????????????? #??? #?????????????????? | | ???????????????????????## ##? #?????????????????? | | ??????????????????????## ## ??????????????????? | | ??????????????????##### ???????????????????? | | ?????????????###?## # #????????????????????? | | ????????????? ### #????????????????????? | | ?????????????# # #?????????????????????? | | ?????????????# # ##????????????????????? | | ????????###### ###??????????????????? | | ???????## ########???????????? | | ??????## t $ #??????????? | | ??????# #### @ #????????????????? | | ??????# ##### ##????????????????? | | ??????## #####?????????????????? | | ???????## # #????####?????????????? | | ????????# # #######u ###??? ??????????????? | | ????????# # #????##u ##???? ???????????????? | | ????????# #???## #??? #????????????????? | | ????????# #??## #### #????????????????? | | ????????#######??# #????????????????? | | ?????????????##### * #????????????????? | | ?????????????# % = #####%####????????????????? | | ?????????????# = #???#=#???????????????????? | | ?????????????# ## ##???# #???????????????????? | | ?????????????# ### ##???? ???????????????????? | | ?????????????# #?####????? ""???????????????????? | | ?????????????# #?????????? ""???????????????????? | | ?????????????# #?????????? ""???????????????????? | | ?????????????# #?????????# ??????????????????? | | ????????????? ?????????## ##??????????????????? | | ????????????? ??????????? ????????????????????? | | ????????????? ????????????????????????????????? | | ???????????? ????????????????????????????????? | | ????????????# #????????????????????????????????? | | ????????????# #?????????????????????????????????? | | ????????????# ??????????????????????????????????? | +----------------------------------------------------+ Best States ------------- Heat Dissipation 25 Energy Generation 10 Energy Capacity 250 Matter Stores 300 Matter Capacity 300 Sight Range 16 Terrain Scan Density 10 Evasion (%) 44 Item Schematics ----------------- Hcp. Storage Unit | -10/Materials | Hacked Robot Schematics ------------------ None Fabricated ------------ Nothing Alien Tech Used ----------------- None Achievements -------------- None Challenges ------------ None Game ------ Seed GaussLaserShotgun Manual? 0 Play Time 00:07:50 Cumulative 119.6 hours Start 2021.06.16 @ 11:26:37 End 2021.06.16 @ 11:33:18 Sessions 1 Manual Loads 0 Difficulty Rogue Special Mode None Game No. 34 Rogue 17 Adventurer 17 Explorer 0 Win Type - Total 6 Types 5/0/0/1/0/0/0/0/0 Lore% 63 Gallery% 62 Achievement% 56 Wizard Run 0 Options --------- ASCII 0 Keyboard 0 Movement Arrows Keybinds 0 Fullscreen 1 Font 28/Dina Map View 72x54 Tactical HUD 1 Map Filters NONE Filters NONE Steam 1 RUN: 5ebde3bc-aa21-43d8-96d9-627ee2209133